bitfinex-derivatives/quotes_ETHF0:USTF0_20241129
["timestamp","ask_amount","ask_price","bid_price","bid_amount"]
[1732910304224,6.9968,3586.4,3583.6,1.27662535]
[1732910304225,4.0619,3584.8,3584.0,2.12259056]
[1732910304419,4.0619,3584.8,3584.4,0.27871]
[1732910304420,0.27872,3584.5,3584.4,0.27871]
[1732910304620,0.27872,3584.5,3584.4,41.07871]
[1732910304928,0.27872,3584.5,3584.4,0.27871]
[1732910305432,0.27872,3584.5,3584.2,0.817]
[1732910305433,0.27871,3584.6,3584.5,0.2787]
[1732910305631,0.27871,3584.6,3584.2,0.817]
[1732910305632,0.27869,3584.7,3584.6,0.27869]
[1732910307633,0.8541,3584.8,3584.2,1.74783433]
[1732910307838,0.27871,3584.6,3584.5,0.2787]
[1732910308027,0.27871,3584.6,3584.5,3.9687]
[1732910309132,0.8541,3584.8,3584.5,3.69]
[1732910309334,0.2787,3584.7,3584.6,0.27869]
[1732910309637,0.2787,3584.7,3584.6,0.50869]
[1732910311137,0.2787,3584.7,3584.6,0.23]
[1732910311634,0.2787,3584.7,3584.3,0.27872]
[1732910311930,0.2787,3584.7,3584.3,0.29872]
[1732910311931,0.27872,3584.4,3584.3,0.29872]
[1732910313832,0.27871,3584.6,3584.5,0.2787]
[1732910314042,0.27871,3584.6,3584.5,3.8387]
[1732910314335,0.2787,3584.7,3584.6,0.27869]
[1732910314538,0.2787,3584.7,3584.6,3.88869]
[1732910319448,3.91219,3584.8,3584.7,0.27869]
[1732910319643,3.91219,3584.8,3584.7,0.72709]
[1732910320548,0.70439,3584.8,3584.7,0.72709]
[1732910321046,0.4257,3584.8,3584.7,0.72709]
[1732910321245,0.27867,3585.0,3584.9,0.27867]
[1732910321743,3.2078,3585.3,3584.7,0.4484]
[1732910322041,0.27866,3585.2,3585.1,0.27865]
[1732910322647,3.2078,3585.3,3584.7,1.14513]
[1732910322836,3.2078,3585.3,3585.0,0.27866]
[1732910322837,0.27867,3585.1,3585.0,0.27866]
[1732910323039,0.27866,3585.2,3585.1,0.27865]
[1732910325049,3.2078,3585.3,3584.8,0.69671]
[1732910325245,3.48645,3585.3,3585.2,0.27865]
[1732910327454,0.27867,3585.1,3585.0,0.27866]
[1732910328443,0.27868,3585.0,3584.9,0.27866]
[1732910328758,0.27868,3585.0,3584.9,0.31866]
[1732910330955,0.27868,3585.0,3584.9,0.27866]
[1732910331456,0.27869,3584.9,3584.8,0.27868]
[1732910331853,0.27869,3584.8,3584.7,0.27887001]
[1732910332051,0.69379,3584.8,3584.7,0.27887001]
[1732910332858,0.69379,3584.8,3584.7,0.55756001]
[1732910333059,0.69379,3584.8,3584.7,0.27887001]
[1732910336659,0.69379,3584.8,3584.7,0.55756001]
[1732910336854,0.69379,3584.8,3584.7,0.27887001]
[1732910337355,0.4449,3585.0,3584.7,0.27887001]
[1732910337557,0.27869,3585.0,3584.9,1.30566523]
[1732910337952,0.27869,3585.0,3584.9,42.10566523]
[1732910338456,2.994,3585.8,3584.9,2.05399046]
[1732910338659,0.27861,3585.8,3585.7,1.30560523]
[1732910340160,0.27861,3585.8,3585.7,0.27861]
[1732910340361,0.27862,3585.7,3585.6,0.27862]
[1732910342954,0.27862,3585.7,3585.6,0.28862]
[1732910347361,3.4864,3586.0,3585.9,0.2786]
[1732910348070,0.27862,3585.8,3585.7,0.27861]
[1732910348664,0.27862,3585.8,3585.7,0.28861]
[1732910352468,3.2078,3586.0,3585.7,0.01]
[1732910352666,0.27861,3585.9,3585.8,0.2786]
[1732910352866,3.4864,3586.0,3585.9,0.2786]
[1732910353375,0.27859,3586.2,3586.1,0.27858]
[1732910354463,0.2786,3586.1,3586.0,0.27859]
[1732910356775,1.15478,3586.3,3586.2,0.27858]
[1732910357169,0.71678,3586.3,3586.2,0.27858]
[1732910357366,0.71678,3586.3,3586.1,0.4463]
[1732910357565,0.71678,3586.3,3586.0,3.01599332]
[1732910357566,0.4382,3586.3,3586.0,0.72569]
[1732910357772,0.27858,3586.1,3586.0,0.77569]
[1732910358476,0.27858,3586.1,3586.0,0.4971]
[1732910358769,0.27858,3586.1,3586.0,0.77569]
[1732910358965,0.27858,3586.1,3586.0,0.05]
[1732910359163,0.27862,3585.7,3585.6,1.37143013]
[1732910359366,0.27862,3585.7,3585.6,1.41143013]
[1732910360373,3.2078,3585.7,3584.8,0.27881013]
[1732910360575,0.27865,3585.3,3585.2,0.4454]
[1732910360971,0.27865,3585.3,3585.2,0.72405]
[1732910361775,0.27865,3585.3,3585.2,0.4454]
[1732910362279,0.27865,3585.3,3585.2,0.72405]
[1732910362469,0.27865,3585.3,3585.2,0.4454]
[1732910362976,1.14169,3585.5,3585.0,0.4348]
[1732910363277,1.14169,3585.5,3585.0,0.09]
[1732910363278,0.27866,3585.1,3585.0,0.09]
[1732910365576,0.27868,3584.9,3584.8,0.72421013]
[1732910365776,0.27868,3584.9,3584.8,0.27881013]
[1732910376175,0.27868,3584.9,3584.8,0.98659013]
[1732910376481,0.27868,3584.9,3584.8,1.02659013]
[1732910381175,3.2078,3585.3,3584.8,0.74791013]
[1732910381376,3.48646,3585.3,3585.2,0.27865]
[1732910384688,3.48646,3585.3,3585.2,0.70275]
[1732910384988,3.48646,3585.3,3585.2,0.69275]
[1732910385190,3.48646,3585.3,3585.2,0.70275]
[1732910385382,3.48646,3585.3,3585.2,0.4241]
[1732910385689,3.48646,3585.3,3585.2,0.70275]
[1732910387583,3.48646,3585.3,3585.2,0.01]
[1732910387784,0.27867,3585.1,3585.0,0.27867]
[1732910387983,0.27867,3585.1,3585.0,0.41867]
[1732910388589,0.27867,3585.1,3585.0,0.14]
[1732910388786,0.27869,3584.7,3584.6,4.0208]
[1732910388985,0.27869,3584.7,3584.6,4.3708]
[1732910389181,0.27869,3584.7,3584.6,4.6495]
[1732910389389,0.27869,3584.9,3584.8,0.27868]
[1732910390292,0.27869,3584.8,3584.7,0.27869]
[1732910392591,0.69669,3585.0,3584.6,1.09185601]
[1732910392895,0.27869,3584.7,3584.6,1.45054601]
[1732910396592,0.27869,3584.9,3584.8,0.27868]
[1732910396796,0.27869,3584.9,3584.8,1.30525773]
[1732910397088,0.27867,3585.1,3585.0,0.27866]
[1732910399485,0.27866,3585.2,3585.1,0.27865]
[1732910399686,0.27866,3585.2,3585.1,1.30522773]
[1732910400394,0.27865,3585.3,3585.2,0.27864]
[1732910402292,3.6246,3585.6,3584.9,2.01409]
[1732910402493,0.27864,3585.5,3585.4,0.27863]
[1732910403297,3.6246,3585.6,3585.2,1.02657773]
[1732910403498,0.27866,3585.2,3585.1,0.27866]
[1732910403692,1.72317773,3585.5,3584.9,1.54886514]
[1732910403892,0.27867,3585.0,3584.9,1.15067]
[1732910405799,0.27867,3585.0,3584.9,0.872]
[1732910405998,0.27867,3585.0,3584.9,1.15068]
[1732910410695,0.27867,3585.0,3584.9,0.872]
[1732910410902,0.27869,3584.7,3584.6,0.27885601]
[1732910411096,0.27871,3584.5,3584.4,2.13358773]
[1732910411296,0.27871,3584.5,3584.4,2.38358773]
[1732910411503,0.27871,3584.6,3584.5,0.2787]
[1732910412207,3.2078,3585.2,3584.5,1.02678]
[1732910412400,0.27865,3585.2,3585.1,1.02657773]
[1732910412710,0.69663,3585.3,3584.6,1.02657773]
[1732910413006,0.27871,3584.6,3584.5,0.2787]
[1732910413412,1.13461,3584.9,3584.4,1.10716456]
[1732910413709,0.27871,3584.5,3584.4,1.38587456]
[1732910415900,0.27871,3584.6,3584.5,0.2787]
[1732910416108,0.27871,3584.6,3584.5,1.30527773]
[1732910417600,0.27871,3584.6,3584.5,1.02657773]
[1732910417798,0.409,3584.8,3584.4,0.55757456]
[1732910418104,0.69674,3584.7,3584.1,2.70227773]
[1732910418308,0.27873,3584.3,3584.2,0.27872]
[1732910418612,0.27873,3584.2,3584.1,2.98100773]
[1732910419108,0.27873,3584.2,3584.1,0.8647]
[1732910419310,0.27873,3584.2,3584.1,1.14344]
[1732910419516,0.27873,3584.2,3584.1,2.17001773]
[1732910420017,0.27873,3584.2,3584.1,1.89127773]
[1732910420204,0.4214,3584.4,3583.9,1.30532773]
[1732910420205,0.27874,3584.1,3583.9,1.30532773]
[1732910420510,0.68974,3584.1,3583.9,1.73982773]
[1732910421009,3.2078,3584.8,3584.0,1.02657773]
[1732910421212,0.27869,3584.9,3584.8,0.27867]
[1732910421404,3.2078,3585.2,3584.8,1.91697773]
[1732910421609,4.23437773,3585.6,3585.0,1.02657773]
[1732910421809,0.27866,3585.2,3585.1,0.27865]
[1732910423613,0.27866,3585.2,3584.7,3.90453]
[1732910423807,0.27866,3585.2,3582.9,20.84018516]
[1732910424014,0.27866,3585.2,3582.3,1.18046992]
[1732910424015,0.27887,3582.4,3581.2,3.2078]
[1732910424208,3.2078,3582.0,3581.6,1.02657773]
[1732910424517,3.2078,3582.0,3581.7,3.60083262]
[1732910424518,3.20838605,3582.0,3581.7,3.60083262]
[1732910424812,2.78106955,3581.9,3581.8,0.39303262]
[1732910425010,0.4338,3583.8,3582.1,0.27889]
[1732910425011,3.48661,3583.3,3582.1,0.27889]
[1732910425216,0.27882,3583.1,3582.6,1.02657773]
[1732910425413,0.4338,3583.0,3582.7,40.8]
[1732910425814,0.71263,3583.0,3582.7,40.8]
[1732910426319,9.78261051,3584.0,3582.8,2.12567782]
[1732910426616,9.78261051,3584.0,3583.2,5.33347782]
[1732910426617,0.71436,3583.9,3583.2,5.33347782]
[1732910426823,0.4356,3583.9,3583.3,0.866]
[1732910427117,0.4356,3583.9,3583.3,1.066]
[1732910427321,1.2659,3583.9,3583.3,1.066]
[1732910427815,1.54466,3583.9,3583.3,1.066]
[1732910428015,1.2659,3583.9,3583.3,0.2]
[1732910428212,1.2659,3583.9,3583.4,0.866]
[1732910428408,1.54466,3583.9,3583.4,0.996]
[1732910429919,0.27876,3583.8,3583.4,0.996]
[1732910430113,3.2078,3584.5,3583.6,2.12567782]
[1732910430410,3.48651,3584.5,3583.7,3.2078]
[1732910430614,0.4125,3584.6,3584.1,3.2078]
[1732910430817,0.4125,3584.6,3584.5,3.2078]
[1732910431220,0.6912,3584.6,3584.2,0.866]
[1732910431517,0.4125,3584.6,3584.5,40.8]
[1732910432710,0.6912,3584.6,3584.5,40.8]
[1732910433612,0.27873,3584.2,3584.1,3.2078]
[1732910434520,0.27873,3584.2,3583.9,0.866]
[1732910434521,0.4125,3584.6,3583.9,0.866]
[1732910434719,0.27874,3584.1,3583.9,0.866]
[1732910435222,3.43718003,3584.0,3583.9,0.866]
[1732910436028,3.43711397,3584.0,3583.9,0.866]
[1732910436321,3.71586397,3584.0,3583.9,41.666]
[1732910436626,3.71586397,3584.0,3583.9,41.676]
[1732910437122,3.71586397,3584.0,3583.9,41.666]
[1732910439825,6.85352051,3584.6,3583.9,45.5638]
[1732910440020,7.02721051,3584.8,3584.5,0.27871]
[1732910440324,0.2787,3584.7,3584.6,0.866]
[1732910440625,0.4524,3584.8,3584.7,0.27869]
[1732910440924,0.27869,3584.8,3584.7,0.27869]
[1732910441419,0.72338,3584.9,3584.7,40.8]
[1732910441620,0.4447,3584.9,3584.7,41.07869]
[1732910441822,0.27869,3584.8,3584.7,41.07869]
[1732910442914,7.01951051,3584.9,3584.7,40.8]
[1732910443118,0.72338,3584.9,3584.8,0.27869]
[1732910443821,0.72338,3584.9,3584.8,41.07869]
[1732910444219,0.4447,3584.9,3584.8,41.07869]
[1732910445428,0.72338,3584.9,3584.8,41.07869]
[1732910445632,0.72338,3584.9,3584.8,40.8]
[1732910445926,0.72338,3584.9,3584.8,41.07869]
[1732910446324,0.72338,3584.9,3584.8,40.8]
[1732910446521,0.72338,3584.9,3584.8,41.07869]
[1732910447827,0.4447,3584.9,3584.8,41.07869]
[1732910448419,7.29819051,3584.9,3584.8,41.07869]
[1732910448624,0.72338,3584.9,3584.8,41.07869]
[1732910449630,7.29819051,3584.9,3584.8,40.8]
[1732910449830,10.62516033,3584.9,3584.8,40.8]
[1732910450028,15.94831205,3584.9,3584.8,40.8]
[1732910450323,4.05034982,3584.9,3584.8,41.07869]
[1732910450726,4.05035969,3584.9,3584.8,41.07869]
[1732910452928,4.05035969,3584.9,3584.8,40.8]
[1732910454126,4.05035969,3584.9,3584.1,0.854]
[1732910454127,0.27873,3584.2,3584.1,0.854]
[1732910454530,0.27873,3584.2,3584.1,1.13274]
[1732910454531,9.067582,3584.2,3584.1,1.13274]
[1732910455228,9.494182,3584.2,3584.1,1.13274]
[1732910457237,4.03295379,3584.2,3584.1,1.13274]
[1732910457736,4.03295379,3584.2,3584.1,1.41164268]
[1732910459245,4.03295379,3584.2,3584.1,1.42164268]
[1732910460339,0.68192379,3584.2,3584.1,1.42164268]
[1732910460540,5.46220018,3584.4,3584.3,0.27872]
[1732910460743,4.96220018,3584.5,3584.4,0.27872]
[1732910460935,1.14287,3585.0,3584.9,0.27868]
[1732910460936,0.8642,3585.0,3584.9,0.27868]
[1732910461234,1.14287,3585.0,3584.9,1.13268]
[1732910463037,6.24763102,3585.0,3584.9,0.854]
[1732910463238,6.24763102,3585.0,3584.9,1.13268]
[1732910463635,5.55326102,3585.0,3584.9,4.34048]
[1732910463837,9.86221577,3585.7,3584.9,4.34048]
[1732910463838,7.67061227,3585.4,3585.3,0.27865]
[1732910464150,0.69371,3585.8,3585.7,0.27862]
[1732910464353,0.69371,3585.8,3585.7,1.13262]
[1732910465145,0.4151,3585.8,3585.3,3.2078]
[1732910465440,0.4151,3585.8,3585.4,0.854]
[1732910465632,0.4151,3585.8,3585.4,0.904]
[1732910465941,0.27862,3585.7,3585.6,0.27862]
[1732910466335,0.4151,3585.8,3585.4,0.854]
[1732910466538,0.4151,3585.8,3585.4,0.914]
[1732910466539,0.27863,3585.5,3585.4,0.914]
[1732910467746,0.27863,3585.5,3585.4,1.19264]
[1732910467939,0.27863,3585.5,3585.4,1.19263]
[1732910468140,0.4151,3585.8,3585.4,0.06]
[1732910468340,0.27862,3585.6,3585.5,0.854]
[1732910469042,0.4151,3585.8,3585.5,0.854]
[1732910469241,0.4151,3585.8,3585.7,0.27862]
[1732910470136,4.77811566,3585.8,3585.7,0.27862]
[1732910470344,0.4151,3585.8,3585.7,5.93209782]
[1732910470546,4.78129566,3585.8,3585.7,5.93209782]
[1732910472338,7.67061227,3586.3,3585.7,5.65347782]
[1732910472546,0.27858,3586.1,3586.0,0.27859]
[1732910472738,5.3771316,3586.1,3586.0,0.27859]
[1732910474151,5.0985516,3586.1,3585.8,0.854]
[1732910474350,5.0985516,3586.1,3586.0,0.27859]
[1732910474351,5.3771416,3586.1,3586.0,0.27859]
[1732910475347,5.8251416,3586.1,3586.0,0.27859]
[1732910475544,6.2629416,3586.1,3586.0,0.27859]
[1732910475740,0.27861,3585.8,3585.7,2.40428782]
[1732910476042,5.37795481,3585.8,3585.7,3.39828782]
[1732910476249,5.09934481,3585.8,3585.7,3.39828782]
[1732910476647,5.53044481,3585.8,3585.7,3.39828782]
[1732910477348,12.08214098,3585.8,3585.7,3.39828782]
[1732910477550,6.55169617,3585.8,3585.7,3.39828782]
[1732910477852,6.55169617,3586.0,3585.9,0.2786]
[1732910478052,7.43749617,3586.1,3585.9,0.4]
[1732910478248,7.43749617,3586.1,3586.0,0.27859]
[1732910478454,12.5351646,3586.1,3586.0,0.27859]
[1732910478648,12.8137446,3586.1,3586.0,0.27859]
[1732910479349,12.5351646,3586.1,3586.0,0.27859]
[1732910480248,12.5351646,3586.1,3586.0,0.28859]
[1732910480249,0.448,3586.1,3586.0,0.28859]
[1732910480547,0.448,3586.1,3586.0,3.49639]
[1732910481353,5.45668104,3586.2,3586.1,0.27858]
[1732910482152,5.45668104,3586.2,3586.1,0.28858]
[1732910482953,5.73526104,3586.2,3586.1,2.41425782]
[1732910483252,5.45668104,3586.2,3586.1,2.41425782]
[1732910483656,5.73526104,3586.2,3586.1,2.41425782]
[1732910484045,5.45668104,3586.2,3586.1,2.41425782]
[1732910485049,5.88778104,3586.3,3586.2,0.27858]
[1732910485253,0.4311,3586.3,3586.2,0.70858]
[1732910487752,5.88778104,3586.3,3586.2,0.70858]
[1732910488061,6.16635104,3586.3,3586.2,0.43]
[1732910488256,0.70967,3586.3,3586.2,0.6196]
[1732910489067,0.4311,3586.3,3586.0,5.33347782]
[1732910489354,0.27859,3586.0,3585.9,0.868]
[1732910490159,0.27862,3585.7,3585.6,3.27229782]
[1732910490459,0.4122,3585.9,3585.6,3.27229782]
[1732910490654,0.27862,3585.7,3585.6,3.27229782]
[1732910490854,0.27862,3585.7,3585.3,0.868]
[1732910491058,0.27862,3585.7,3585.2,3.2078]
[1732910491059,0.27864,3585.5,3585.4,0.27863]
[1732910491758,0.27864,3585.5,3585.2,6.20147782]
[1732910491759,0.4415,3585.6,3585.2,6.20147782]
[1732910491959,5.45885478,3585.3,3585.2,6.48012782]
[1732910492160,5.45885478,3585.5,3585.2,5.33347782]
[1732910492363,0.27864,3585.5,3585.4,0.27864]
[1732910492959,5.45895998,3585.5,3585.4,0.27864]
[1732910493968,5.45895998,3585.6,3585.3,0.868]
[1732910494178,0.4283,3585.8,3585.3,1.098]
[1732910494179,5.45895998,3585.7,3585.3,1.098]
[1732910494376,5.45895998,3585.7,3585.6,2.40429782]
[1732910494566,5.88725998,3585.8,3585.7,0.27862]
[1732910494765,6.16586998,3585.8,3585.7,0.27862]
[1732910495162,5.88725998,3585.8,3585.7,0.27862]
[1732910495462,1.1323,3585.9,3585.8,0.27861]
[1732910495862,0.8537,3585.9,3585.8,0.27861]
[1732910496264,1.1323,3585.9,3585.8,0.27861]
[1732910496664,1.1323,3585.9,3585.6,3.2078]
[1732910496665,0.8537,3585.9,3585.6,3.2078]
[1732910496865,1.1323,3585.9,3585.8,2.40428782]
[1732910497366,0.8537,3585.9,3585.8,2.40428782]
[1732910497564,1.1323,3585.9,3585.8,2.40428782]
[1732910499668,1.1323,3585.9,3585.8,2.12567782]
[1732910499871,1.1323,3585.9,3585.8,2.40428782]
[1732910500269,7.68399617,3585.9,3585.8,2.12567782]
[1732910500570,7.68399617,3585.9,3585.8,2.40428782]
[1732910500771,12.78480062,3585.9,3585.8,2.40428782]
[1732910501565,12.78480062,3585.9,3585.8,2.12567782]
[1732910502263,6.23310445,3585.9,3585.8,2.12567782]
[1732910502470,1.1323,3585.9,3585.8,2.12567782]
[1732910502964,0.27862,3585.7,3585.6,1.14662]
[1732910503374,0.8537,3585.9,3585.6,0.868]
[1732910503375,7.41173187,3585.9,3585.6,0.868]
[1732910503665,0.27862,3585.8,3585.7,0.27861]
[1732910505375,6.83664187,3585.8,3585.7,0.27861]
[1732910505571,11.90836443,3585.8,3585.7,0.27861]
[1732910506664,5.35033256,3585.8,3585.7,0.27861]
[1732910506859,6.56760148,3585.8,3585.7,0.27861]
[1732910507274,11.91793404,3585.8,3585.7,0.27861]
[1732910507474,5.35033256,3585.8,3585.7,0.27861]
[1732910508079,0.27862,3585.7,3585.6,0.868]
[1732910508275,0.27862,3585.7,3585.4,46.41226387]
[1732910508276,0.27863,3585.5,3585.4,2.40431782]
[1732910508467,0.27863,3585.5,3585.1,0.868]
[1732910508468,13.18983483,3585.6,3585.1,0.868]
[1732910508674,6.57132773,3585.4,3585.1,3.18367782]
[1732910508977,6.84997773,3585.2,3585.1,3.46233782]
[1732910509173,11.86532083,3585.2,3585.1,3.18367782]
[1732910509376,5.2939931,3585.2,3585.1,2.59433782]
[1732910509672,5.2939931,3585.2,3585.1,2.31567782]
[1732910509872,5.2939931,3585.2,3585.1,2.59433782]
[1732910510772,0.27865,3585.2,3585.1,2.59433782]
[1732910510970,5.2939931,3585.2,3585.1,2.59433782]
[1732910511175,0.27865,3585.2,3585.1,2.31567782]
[1732910511376,0.27865,3585.2,3585.1,2.59433782]
[1732910511582,5.2939931,3585.2,3585.1,2.31567782]
[1732910511877,5.2939931,3585.2,3585.1,2.59433782]
[1732910513177,5.0153431,3585.2,3585.1,2.59433782]
[1732910513374,5.0153431,3585.2,3585.1,3.46723782]
[1732910513580,5.2939931,3585.2,3585.1,3.46723782]
[1732910514173,5.0153431,3585.2,3585.1,3.46723782]
[1732910514481,7.94296566,3585.2,3585.1,3.46723782]
[1732910514677,12.95830876,3585.2,3585.1,3.46723782]
[1732910515676,12.67965876,3585.2,3585.1,3.46723782]
[1732910516380,12.95830876,3585.2,3585.1,3.46723782]
[1732910517478,0.27865,3585.2,3585.1,3.46723782]
[1732910519083,7.27270972,3585.3,3585.2,0.27865]
[1732910519879,6.56755972,3585.3,3585.2,0.27865]
[1732910520175,7.00755972,3585.6,3585.5,0.27863]
[1732910520380,0.44,3585.6,3585.5,2.40430782]
[1732910520974,0.71862,3585.6,3585.5,2.40430782]
[1732910523484,0.44,3585.6,3585.5,2.40430782]
[1732910523876,0.4426,3585.8,3585.5,2.40430782]
[1732910523877,6.56755972,3585.8,3585.7,0.27862]
[1732910524073,6.56755972,3586.0,3585.6,1.3001]
[1732910524277,6.56755972,3586.0,3585.9,2.40427782]
[1732910524472,5.01098217,3586.0,3585.9,2.40427782]
[1732910524873,5.28957217,3586.0,3585.9,2.40427782]
[1732910525074,5.28957217,3586.0,3585.9,2.12567782]
[1732910525272,5.28957217,3586.0,3585.7,3.6287]
[1732910525273,5.01098217,3586.0,3585.8,0.2786]
[1732910525474,0.2786,3585.9,3585.8,0.2786]
[1732910525685,5.28958217,3585.9,3585.8,0.2786]
[1732910527787,5.01098217,3585.9,3585.7,3.6287]
[1732910527977,6.84581564,3585.8,3585.7,3.90731]
[1732910528185,11.85679781,3585.8,3585.7,3.90731]
[1732910528479,5.28959217,3585.8,3585.7,3.90731]
[1732910528981,5.28959217,3585.8,3585.7,3.48641]
[1732910529579,5.28959217,3585.8,3585.7,3.2078]
[1732910529793,0.27862,3585.7,3585.6,0.27862]
[1732910529985,6.13200217,3585.7,3585.6,0.27862]
[1732910530286,6.13200217,3585.7,3585.5,2.98167782]
[1732910530479,13.39251783,3585.6,3585.5,3.26030782]
[1732910530881,12.89251783,3585.6,3585.5,3.26030782]
[1732910531082,12.39251783,3585.6,3585.5,3.26030782]
[1732910531282,12.39251783,3585.6,3585.2,0.4156]
[1732910531283,12.11389783,3585.6,3585.2,0.4156]
[1732910531585,0.27865,3585.3,3585.2,0.69425]
[1732910532284,7.66431566,3585.4,3585.2,0.4156]
[1732910532581,0.27864,3585.4,3585.3,0.27865]
[1732910532990,9.04037257,3585.4,3585.3,0.27865]
[1732910533388,8.08123968,3585.4,3585.3,0.27865]
[1732910533587,16.84467636,3585.4,3585.3,0.27865]
[1732910533784,9.04207668,3585.4,3585.3,0.27865]
[1732910533984,0.27865,3585.3,3585.2,0.69425]
[1732910534283,0.27865,3585.3,3585.2,0.71425]
[1732910536089,5.27261644,3585.3,3585.2,0.71425]
[1732910536288,5.27261644,3585.3,3585.2,0.4356]
[1732910536587,13.07578088,3585.3,3585.2,0.02]
[1732910536782,13.07578088,3585.3,3585.2,0.29865]
[1732910538394,21.83910551,3585.3,3585.2,0.29865]
[1732910539190,21.83910551,3585.3,3585.2,0.27865]
[1732910539594,11.84480586,3585.3,3585.2,0.27865]
[1732910539893,5.27261644,3585.3,3585.2,0.27865]
[1732910540089,6.85083961,3585.3,3585.2,0.27865]
[1732910540689,11.84480605,3585.3,3585.2,0.27865]
[1732910541995,0.27865,3585.2,3585.1,2.40433782]
[1732910542298,6.85075823,3585.2,3585.1,1.30521271]
[1732910542497,11.84472467,3585.2,3585.1,1.30521271]
[1732910542990,11.84472467,3585.2,3585.1,1.02655271]
[1732910544888,0.27867,3585.0,3584.9,3.2078]
[1732910545090,7.66755433,3585.0,3584.5,1.85355271]
[1732910545295,0.2787,3584.6,3584.5,1.88355271]
[1732910545998,12.28848551,3584.6,3584.5,1.88355271]
[1732910546301,12.28848551,3584.6,3584.5,2.16226271]
[1732910546302,7.29436104,3584.6,3584.5,2.16226271]
[1732910546493,0.7211,3584.6,3584.5,1.88355271]
[1732910547597,12.28672767,3584.6,3584.5,1.88355271]
[1732910548189,12.28672767,3584.6,3584.5,2.16226271]
[1732910548596,0.7211,3584.6,3584.5,2.16226271]
[1732910549301,0.2787,3584.6,3584.5,2.16226271]
[1732910551104,0.2787,3584.6,3584.5,1.33526271]
[1732910556708,6.57326104,3584.9,3584.5,1.05655271]
[1732910557011,6.57326104,3585.0,3584.6,3.2078]
[1732910557209,5.47128471,3584.8,3584.7,0.4194]
[1732910557512,9.84591104,3585.3,3585.2,0.27865]
[1732910557701,3.27265,3585.3,3585.2,0.27865]
[1732910557902,3.27265,3585.3,3585.2,1.30520271]
[1732910558101,3.27265,3585.3,3585.2,1.02655271]
[1732910558308,3.27265,3585.3,3585.2,1.30520271]
[1732910558708,0.27865,3585.3,3585.2,1.30520271]
[1732910561116,0.27865,3585.3,3585.2,0.27865]
[1732910561720,0.27866,3585.1,3585.0,0.6296]
[1732910562010,0.27868,3584.9,3584.8,0.93028]
[1732910562211,0.27868,3584.9,3584.8,0.6516]
[1732910562407,0.27868,3584.9,3584.8,0.93029]
[1732910562710,5.86716533,3584.9,3584.8,0.6516]
[1732910562914,0.27869,3584.7,3584.6,3.48649]
[1732910563109,6.84415081,3584.7,3584.6,4.09689]
[1732910563606,11.82273614,3584.7,3584.6,4.09689]
[1732910564002,11.82273614,3584.7,3584.6,0.88909]
[1732910564204,11.54404614,3584.7,3584.4,0.6296]
[1732910564409,11.82264578,3584.6,3584.5,0.6104]
[1732910564604,5.25718497,3584.6,3584.5,0.88911]
[1732910565513,0.27872,3584.3,3584.2,3.2078]
[1732910565816,0.27875,3584.0,3583.9,0.6445]
[1732910566211,5.25825136,3584.0,3583.9,0.6445]
[1732910567208,0.27878,3583.7,3583.6,0.27878]
[1732910567518,0.27878,3583.7,3583.5,1.4411]
[1732910567519,0.27878,3583.6,3583.5,1.4411]
[1732910567716,0.27878,3583.6,3583.5,0.11]
[1732910567911,0.27879,3583.4,3583.3,0.6445]
[1732910568215,6.84153604,3583.4,3583.3,0.7645]
[1732910568414,4.95326073,3583.4,3583.0,0.6141]
[1732910568719,4.95326073,3583.4,3583.0,1.2141]
[1732910568720,0.27882,3583.1,3583.0,1.2141]
[1732910568917,6.56274604,3583.2,3582.9,0.827]
[1732910569218,0.697,3583.4,3582.7,0.27885]
[1732910569219,0.27885,3582.8,3582.7,0.27885]
[1732910569414,0.27885,3582.8,3582.7,0.01]
[1732910569612,4.3709765,3582.9,3582.7,0.01]
[1732910569917,4.6498265,3582.8,3582.7,0.01]
[1732910570513,0.27886,3582.6,3582.5,1.2513]
[1732910570713,3.55550064,3582.6,3582.5,1.4013]
[1732910570917,3.55550064,3582.6,3582.5,1.68016]
[1732910571116,3.55550064,3582.6,3582.5,1.4013]
[1732910571313,0.27886,3582.6,3582.5,1.4013]
[1732910571519,4.3709765,3582.7,3582.1,0.827]
[1732910571717,2.46249595,3582.2,3582.1,1.767]
[1732910571913,2.46249595,3582.2,3582.1,0.94]
[1732910572116,1.96249595,3582.2,3582.1,0.94]
[1732910572317,0.27889,3582.2,3582.1,0.94]
[1732910575024,0.69721,3582.3,3581.5,1.10007469]
[1732910575217,3.27117096,3582.0,3581.5,3.74137469]
[1732910575424,0.27893,3581.6,3581.5,3.74137469]
[1732910575626,0.27893,3581.6,3581.5,4.02031469]
[1732910576023,0.27893,3581.7,3581.6,0.27893]
[1732910576219,2.12557796,3581.7,3581.2,3.2078]
[1732910576521,3.2078,3581.4,3580.8,1.2413]
[1732910576827,0.27896,3581.3,3580.8,1.90029]
[1732910577122,3.2078,3581.4,3580.8,1.6213]
[1732910577428,0.27899,3580.9,3580.8,1.6213]
[1732910577723,0.27899,3580.9,3580.8,1.9003]
[1732910577927,0.27899,3580.9,3580.8,1.6213]
[1732910579119,0.27899,3580.9,3580.8,1.9003]
[1732910579430,0.27899,3581.0,3580.8,1.90029]
[1732910579724,0.27899,3580.9,3580.8,1.6213]
[1732910580527,0.27899,3580.9,3580.8,0.9945]
[1732910580924,0.27899,3580.9,3580.8,0.38]
[1732910581519,3.2078,3581.0,3580.4,0.5966]
[1732910581520,0.27902,3580.5,3580.4,0.5966]
[1732910581725,0.27902,3580.5,3580.4,2.05563]
[1732910583326,2.74657796,3580.9,3580.4,2.05563]
[1732910583327,0.27902,3580.6,3580.5,0.27902]
[1732910583522,0.27902,3580.6,3580.5,0.49902]
[1732910584425,3.2078,3581.1,3580.5,0.22]